fUST/lending_fUST_20241125
["ID","MTS","AMOUNT","RATE_DAILY","PERIOD"]
[343290253,1732546239215,-500.0,0.00026029,2]
[343290254,1732546239227,-500.0,0.00026029,2]
[343290255,1732546239238,-1132.81,0.00026029,2]
[343290256,1732546239249,-500.0,0.00026029,2]
[343290257,1732546239262,-500.0,0.00026029,2]
[343290258,1732546239274,-500.0,0.00026029,2]
[343290259,1732546239287,-500.0,0.00026029,2]
[343290260,1732546239304,-500.0,0.00026029,2]
[343290261,1732546239316,-500.0,0.00026029,2]
[343290262,1732546239328,-500.0,0.00026029,2]
[343290263,1732546239339,-500.0,0.0002603,2]
[343290264,1732546239351,-500.0,0.0002603,2]
[343290265,1732546239361,-610.43347322,0.0002603,2]
[343290266,1732546239372,-500.0,0.0002603,2]
[343290267,1732546239382,-500.0,0.0002603,2]
[343290268,1732546239392,-500.0,0.0002603,2]
[343290269,1732546239403,-591.38,0.0002603,2]
[343290270,1732546239413,-500.0,0.0002603,2]
[343290271,1732546239423,-403.3,0.0002603,2]
[343290272,1732546239435,-617.7,0.0002603,2]
[343290273,1732546239445,-500.0,0.0002603,2]
[343290274,1732546239456,-500.0,0.0002603,2]
[343290275,1732546239467,-500.0,0.0002603,2]
[343290276,1732546239477,-500.0,0.0002603,2]
[343290277,1732546239489,-500.0,0.0002603,2]
[343290278,1732546239500,-500.0,0.0002603,2]
[343290279,1732546239510,-500.0,0.0002603,2]
[343290280,1732546239522,-217.76,0.0002603,2]
[343290281,1732546239532,-500.0,0.0002603,2]
[343290282,1732546239546,-500.0,0.0002603,2]
[343290283,1732546239557,-500.0,0.0002603,2]
[343290284,1732546239567,-500.0,0.0002603,2]
[343290285,1732546239578,-500.0,0.0002603,2]
[343290286,1732546239588,-610.26266342,0.0002603,2]
[343290287,1732546239599,-500.0,0.0002603,2]
[343290288,1732546239609,-500.0,0.0002603,2]
[343290289,1732546239620,-500.0,0.0002603,2]
[343290290,1732546239631,-500.0,0.0002603,2]
[343290291,1732546239642,-500.0,0.0002603,2]
[343290292,1732546239654,-500.0,0.0002603,2]
[343290293,1732546239667,-500.0,0.0002603,2]
[343290294,1732546239677,-500.0,0.0002603,2]
[343290295,1732546239688,-198.32020318,0.0002603,2]
[343290296,1732546239700,-278.74,0.00026302,2]
[343290297,1732546239711,-500.0,0.00026302,2]
[343290298,1732546239724,-500.0,0.00026302,2]
[343290299,1732546239735,-378.5,0.00026302,2]
[343290300,1732546239746,-558.09,0.00026302,2]
[343290301,1732546239756,-527.93,0.00026302,2]
[343290302,1732546239768,-500.0,0.00026302,2]
[343290303,1732546239783,-500.0,0.00026302,2]
[343290304,1732546239797,-617.5814017,0.00026302,2]
[343290305,1732546239808,-500.0,0.00026302,2]
[343290306,1732546239820,-500.0,0.00026303,2]
[343290307,1732546239831,-500.0,0.00026303,2]
[343290308,1732546239843,-500.0,0.00026303,2]
[343290309,1732546239855,-524.44,0.00026303,2]
[343290310,1732546239866,-500.0,0.00026303,2]
[343290311,1732546239876,-500.0,0.00026303,2]
[343290312,1732546239887,-399.48,0.00026303,2]
[343290313,1732546239897,-500.0,0.00026303,2]
[343290314,1732546239908,-500.0,0.00026303,2]
[343290315,1732546239918,-500.0,0.00026303,2]
[343290316,1732546239928,-500.0,0.00026303,2]
[343290317,1732546239938,-1132.81,0.00026303,2]
[343290318,1732546239949,-500.0,0.00026303,2]
[343290319,1732546239959,-500.0,0.00026303,2]
[343290320,1732546239969,-500.0,0.00026303,2]
[343290321,1732546239980,-595.15,0.00026303,2]
[343290322,1732546239989,-500.0,0.00026303,2]
[343290323,1732546240000,-500.0,0.00026304,2]
[343290324,1732546240010,-500.0,0.00026304,2]
[343290325,1732546240021,-196.4,0.00026304,2]
[343290326,1732546240031,-515.76,0.00026304,2]
[343290330,1732546240198,-500.0,0.00026304,2]
[343290332,1732546240209,-500.0,0.00026304,2]
[343290334,1732546240219,-500.0,0.00026304,2]
[343290336,1732546240228,-500.0,0.00026304,2]
[343290337,1732546240237,-500.0,0.00026304,2]
[343290338,1732546240246,-500.0,0.00026304,2]
[343290339,1732546240255,-500.0,0.00026304,2]
[343290340,1732546240264,-500.0,0.00026304,2]
[343290341,1732546240274,-195.02,0.00026304,2]
[343290342,1732546240283,-500.0,0.00026304,2]
[343290343,1732546240293,-173.48825241,0.00026304,2]
[343290344,1732546240308,-229.634947,0.00026399,2]
[343290345,1732546240317,-300.0,0.000265,2]
[343290346,1732546240327,-580.35,0.00026556,3]
[343290347,1732546240337,-235.16,0.00026556,10]
[343290348,1732546240347,-195.96,0.00026556,10]
[343290349,1732546240357,-163.3,0.00026556,10]
[343290350,1732546240368,-431.54768451,0.00026565,2]
[343290351,1732546240378,-500.0,0.00026565,2]
[343290352,1732546240389,-500.0,0.00026565,2]
[343290353,1732546240399,-500.0,0.00026565,2]
[343290354,1732546240409,-500.0,0.00026565,2]
[343290355,1732546240419,-500.0,0.00026565,2]
[343290356,1732546240430,-500.0,0.00026565,2]
[343290357,1732546240440,-444.69494463,0.00026565,2]
[343290358,1732546240449,-500.0,0.00026565,2]
[343290359,1732546240460,-500.0,0.00026565,2]
[343290360,1732546240471,-500.0,0.00026565,2]
[343290361,1732546240481,-500.0,0.00026565,2]
[343290362,1732546240491,-500.0,0.00026565,2]
[343290363,1732546240502,-219.00178224,0.00026565,2]
[343290364,1732546240512,-456.91672855,0.00026565,2]
[343290365,1732546240522,-500.0,0.00026565,2]
[343290366,1732546240531,-424.55225007,0.00026565,2]
[343290367,1732546240541,-500.0,0.00026565,2]
[343290368,1732546240556,-500.0,0.00026565,2]
[343290369,1732546240565,-500.0,0.00026565,2]
[343290370,1732546240575,-500.0,0.00026565,2]
[343290371,1732546240585,-500.0,0.00026565,2]
[343290372,1732546240595,-500.0,0.00026565,2]
[343290373,1732546240605,-500.0,0.00026565,2]
[343290374,1732546240614,-268.78329909,0.00026565,2]
[343290375,1732546240624,-500.0,0.00026565,2]
[343290376,1732546240634,-500.0,0.00026565,2]
[343290377,1732546240643,-557.46733967,0.00026565,2]
[343290378,1732546240652,-500.0,0.00026565,2]
[343290379,1732546240662,-500.0,0.00026565,2]
[343290380,1732546240672,-500.0,0.00026565,2]
[343290381,1732546240681,-500.0,0.00026565,2]
[343290382,1732546240691,-500.0,0.00026565,2]
[343290383,1732546240705,-500.0,0.00026565,2]
[343290384,1732546240714,-500.0,0.00026565,2]
[343290385,1732546240723,-500.0,0.00026565,2]
[343290386,1732546240734,-500.0,0.00026565,2]
[343290387,1732546240743,-500.0,0.00026565,2]
[343290388,1732546240753,-500.0,0.00026565,2]
[343290389,1732546240764,-500.0,0.00026565,2]
[343290390,1732546240776,-500.0,0.00026565,2]
[343290391,1732546240786,-500.0,0.00026565,2]
[343290392,1732546240800,-500.0,0.00026565,2]
[343290393,1732546240811,-350.0,0.00026565,2]
[343290394,1732546240821,-500.0,0.00026565,2]
[343290395,1732546240834,-500.0,0.00026565,2]
[343290396,1732546240844,-500.0,0.00026565,2]
[343290397,1732546240854,-500.0,0.00026565,2]
[343290398,1732546240864,-500.0,0.00026565,2]
[343290399,1732546240874,-500.0,0.00026565,2]
[343290400,1732546240883,-500.0,0.00026565,2]
[343290401,1732546240893,-500.0,0.00026565,2]
[343290402,1732546240903,-500.0,0.00026565,2]
[343290403,1732546240913,-500.0,0.00026565,2]
[343290404,1732546240922,-500.0,0.00026565,2]
[343290405,1732546240932,-500.0,0.00026565,2]
[343290406,1732546240942,-500.0,0.00026565,2]
[343290407,1732546240952,-500.0,0.00026565,2]
[343290408,1732546240961,-500.0,0.00026565,2]
[343290409,1732546240971,-500.0,0.00026565,2]
[343290410,1732546240981,-500.0,0.00026565,2]
[343290411,1732546240990,-500.0,0.00026565,2]
[343290412,1732546241000,-605.52683593,0.00026565,2]
[343290413,1732546241009,-500.0,0.00026565,2]
[343290414,1732546241018,-500.0,0.00026565,2]
[343290415,1732546241027,-500.0,0.00026565,2]
[343290416,1732546241036,-500.0,0.00026565,2]
[343290417,1732546241048,-500.0,0.00026565,2]
[343290418,1732546241057,-271.8528408,0.00026565,2]
[343290419,1732546241069,-500.0,0.00026565,2]
[343290420,1732546241078,-500.0,0.00026565,2]
[343290421,1732546241087,-500.0,0.00026565,2]
[343290422,1732546241097,-500.0,0.00026565,2]
[343290423,1732546241106,-500.0,0.00026565,2]
[343290424,1732546241116,-500.0,0.00026565,2]
[343290425,1732546241125,-500.0,0.00026565,2]
[343290426,1732546241134,-500.0,0.00026565,2]
[343290427,1732546241143,-500.0,0.00026565,2]
[343290428,1732546241152,-500.0,0.00026565,2]
[343290429,1732546241161,-500.0,0.00026565,2]
[343290430,1732546241170,-500.0,0.00026565,2]
[343290431,1732546241179,-500.0,0.00026565,2]
[343290432,1732546241189,-500.0,0.00026565,2]
[343290433,1732546241198,-500.0,0.00026565,2]
[343290434,1732546241207,-500.0,0.00026565,2]
[343290435,1732546241216,-500.0,0.00026565,2]
[343290436,1732546241225,-500.0,0.00026565,2]
[343290437,1732546241234,-500.0,0.00026565,2]
[343290438,1732546241243,-500.0,0.00026565,2]
[343290439,1732546241252,-500.0,0.00026565,2]
[343290440,1732546241261,-500.0,0.00026565,2]
[343290441,1732546241270,-500.0,0.00026565,2]
[343290442,1732546241280,-500.0,0.00026565,2]
[343290443,1732546241289,-500.0,0.00026565,2]
[343290444,1732546241303,-500.0,0.00026565,2]
[343290445,1732546241312,-500.0,0.00026576,2]
[343290446,1732546241322,-500.0,0.00026576,2]
[343290447,1732546241331,-558.09,0.00026576,2]
[343290448,1732546241341,-206.34,0.00026576,2]
[343290449,1732546241350,-500.0,0.00026576,2]
[343290450,1732546241360,-500.0,0.00026576,2]
[343290451,1732546241369,-500.0,0.00026577,2]
[343290452,1732546241378,-500.0,0.00026577,2]
[343290453,1732546241387,-500.0,0.00026577,2]
[343290454,1732546241396,-406.22,0.00026577,2]
[343290455,1732546241405,-1132.81,0.00026577,2]
[343290456,1732546241415,-500.0,0.00026577,2]
[343290457,1732546241424,-500.0,0.00026577,2]
[343290458,1732546241433,-500.0,0.00026577,2]
[343290459,1732546241443,-572.42,0.00026577,2]
[343290460,1732546241453,-500.0,0.00026578,2]
[343290461,1732546241463,-500.0,0.00026578,2]
[343290462,1732546241473,-500.0,0.00026578,2]
[343290463,1732546241483,-500.0,0.00026578,2]
[343290464,1732546241492,-500.0,0.00026578,2]
[343290465,1732546241502,-500.0,0.00026578,2]
[343290466,1732546241512,-500.0,0.00026578,2]
[343290467,1732546241521,-500.0,0.00026578,2]
[343290468,1732546241531,-500.0,0.00026578,2]
[343290469,1732546241540,-607.09751462,0.0002663,2]
[343290470,1732546241553,-323.69467503,0.00026634,2]
[343290471,1732546241562,-500.0,0.00026647,2]
[343290472,1732546241571,-500.0,0.00026675,2]
[343290473,1732546241581,-500.0,0.0002685,2]
[343290474,1732546241590,-500.0,0.0002685,2]
[343290475,1732546241599,-558.09,0.0002685,2]
[343290476,1732546241609,-500.0,0.0002685,2]
[343290477,1732546241618,-500.0,0.0002685,2]
[343290478,1732546241627,-500.0,0.00026851,2]
[343290479,1732546241636,-500.0,0.00026851,2]
[343290480,1732546241645,-500.0,0.00026851,2]
[343290481,1732546241654,-1132.81,0.00026851,2]
[343290482,1732546241663,-500.0,0.00026851,2]
[343290483,1732546241672,-500.0,0.00026851,2]
[343290484,1732546241681,-351.97,0.00026851,2]
[343290485,1732546241691,-500.0,0.00026852,2]
[343290486,1732546241700,-500.0,0.00026852,2]
[343290487,1732546241709,-500.0,0.00026852,2]
[343290488,1732546241718,-443.81939621,0.00026852,2]
[343290489,1732546241727,-500.0,0.00026852,2]
[343290490,1732546241736,-500.0,0.00026852,2]
[343290491,1732546241746,-500.0,0.00026852,2]
[343290492,1732546241756,-500.0,0.00026852,2]
[343290493,1732546241768,-500.0,0.00026852,2]
[343290494,1732546241778,-408.107517,0.00026985,2]
[343290495,1732546241788,-500.0,0.00027124,2]
[343290496,1732546241799,-500.0,0.00027124,2]
[343290497,1732546241809,-558.09,0.00027124,2]
[343290498,1732546241819,-500.0,0.00027124,2]
[343290499,1732546241828,-500.0,0.00027124,2]
[343290500,1732546241837,-500.0,0.00027125,2]
[343290501,1732546241846,-500.0,0.00027125,2]
[343290502,1732546241855,-500.0,0.00027125,2]
[343290503,1732546241865,-1132.81,0.00027125,2]
[343290504,1732546241874,-500.0,0.00027125,2]
[343290505,1732546241883,-500.0,0.00027125,2]
[343290506,1732546241893,-500.0,0.00027126,2]
[343290507,1732546241902,-500.0,0.00027126,2]
[343290508,1732546241911,-500.0,0.00027126,2]
[343290509,1732546241921,-500.0,0.00027126,2]
[343290510,1732546241930,-250.88,0.00027126,2]
[343290511,1732546241939,-500.0,0.00027126,2]
[343290512,1732546241949,-500.0,0.00027126,2]
[343290513,1732546241958,-601.15850341,0.00027195,2]
[343290514,1732546241967,-1000.0,0.00027223,2]
[343290515,1732546241977,-408.107517,0.00027322,2]
[343290516,1732546241986,-220.0,0.00027386,2]
[343290517,1732546241996,-500.0,0.00027397,2]
[343290518,1732546242005,-500.0,0.00027398,2]
[343290519,1732546242014,-500.0,0.00027398,2]
[343290520,1732546242024,-558.09,0.00027398,2]
[343290521,1732546242033,-500.0,0.00027398,2]
[343290522,1732546242046,-500.0,0.00027398,2]
[343290523,1732546242056,-500.0,0.00027399,2]
[343290524,1732546242065,-500.0,0.00027399,2]
[343290525,1732546242075,-383.2,0.00027399,2]
[343290526,1732546242084,-1132.81,0.00027399,2]
[343290527,1732546242093,-500.0,0.00027399,2]
[343290528,1732546242102,-500.0,0.00027399,2]
[343290529,1732546242111,-440.24657935,0.00027399,2]
[343290530,1732546242120,-195.88516366,0.00027399,2]
[343290531,1732546242129,-207.78135283,0.00027399,2]
[343290532,1732546242138,-193.630166,0.00027399,2]
[343290533,1732546242148,-500.0,0.000274,2]
[343290534,1732546242157,-500.0,0.000274,2]
[343290535,1732546242166,-208.36,0.000274,2]
[343290536,1732546242175,-500.0,0.000274,2]
[343290537,1732546242184,-500.0,0.000274,2]
[343290538,1732546242193,-500.0,0.000274,2]
[343290539,1732546242202,-300.0,0.000275,2]
[343290540,1732546242212,-310.25259583,0.00027572,2]
[343290541,1732546242221,-220.0,0.00027616,2]
[343290542,1732546242230,-408.107517,0.0002766,2]
[343290543,1732546242240,-500.0,0.00027672,2]
[343290544,1732546242249,-500.0,0.00027672,2]
[343290545,1732546242258,-558.09,0.00027672,2]
[343290546,1732546242267,-500.0,0.00027672,2]
[343290547,1732546242276,-500.0,0.00027672,2]
[343290548,1732546242285,-500.0,0.00027673,2]
[343290549,1732546242298,-1132.81,0.00027673,2]
[343290550,1732546242307,-500.0,0.00027673,2]
[343290551,1732546242316,-500.0,0.00027673,2]
[343290552,1732546242326,-500.0,0.00027674,2]
[343290553,1732546242336,-500.0,0.00027674,2]
[343290554,1732546242345,-500.0,0.00027674,2]
[343290555,1732546242355,-427.53,0.00027674,2]
[343290556,1732546242364,-245.82,0.00027674,2]
[343290557,1732546242373,-500.0,0.00027946,2]
[343290558,1732546242382,-500.0,0.00027946,2]
[343290559,1732546242392,-558.09,0.00027946,2]
[343290560,1732546242401,-500.0,0.00027946,2]
[343290561,1732546242410,-500.0,0.00027946,2]
[343290562,1732546242420,-337.5,0.00027947,2]
[343290563,1732546242429,-1132.81,0.00027947,2]
[343290564,1732546242438,-500.0,0.00027947,2]
[343290565,1732546242447,-500.0,0.00027947,2]
[343290566,1732546242456,-500.0,0.00027948,2]
[343290567,1732546242465,-500.0,0.00027948,2]
[343290568,1732546242474,-500.0,0.00027948,2]
[343290569,1732546242484,-408.107517,0.00027997,2]
[343290570,1732546242493,-4010.0,0.00028,2]
[343290571,1732546242503,-500.0,0.0002822,2]
[343290572,1732546242512,-500.0,0.0002822,2]
[343290573,1732546242521,-558.09,0.0002822,2]
[343290574,1732546242531,-500.0,0.0002822,2]
[343290575,1732546242540,-500.0,0.0002822,2]
[343290576,1732546242552,-1132.81,0.00028221,2]
[343290577,1732546242562,-500.0,0.00028221,2]
[343290578,1732546242571,-500.0,0.00028221,2]
[343290579,1732546242580,-500.0,0.00028222,2]
[343290580,1732546242589,-500.0,0.00028222,2]
[343290581,1732546242599,-500.0,0.00028222,2]
[343290582,1732546242608,-408.107517,0.00028334,2]
[343290583,1732546242618,-151.0,0.00028339,7]
[343290584,1732546242627,-14391.28783143,0.000284,2]
[343290585,1732546242637,-14391.2878314,0.000284,2]
[343290586,1732546242646,-3597.82195785,0.000284,2]
[343290587,1732546242656,-3597.82195785,0.000284,2]
[343290588,1732546242665,-3597.82195785,0.000284,2]
[343290589,1732546242674,-3597.82195785,0.000284,2]
[343290590,1732546242684,-500.0,0.00028494,2]
[343290591,1732546242693,-500.0,0.00028494,2]
[343290592,1732546242703,-558.09,0.00028494,2]
[343290593,1732546242713,-500.0,0.00028494,2]
[343290594,1732546242723,-500.0,0.00028494,2]
[343290595,1732546242732,-1132.81,0.00028495,2]
[343290596,1732546242742,-500.0,0.00028495,2]
[343290597,1732546242752,-500.0,0.00028495,2]
[343290598,1732546242762,-500.0,0.00028496,2]
[343290599,1732546242772,-500.0,0.00028496,2]
[343290600,1732546242785,-500.0,0.00028496,2]
[343290601,1732546242797,-300.0,0.000285,2]
[343290602,1732546242806,-915.32391828,0.00028546,2]
[343290603,1732546242816,-14391.2878314,0.00028561,2]
[343290604,1732546242826,-911.68,0.000286,2]
[343290605,1732546242835,-153.0,0.00028603,30]
[343290606,1732546242845,-306.0,0.00028603,30]
[343290607,1732546242855,-153.0,0.00028603,30]
[343290608,1732546242866,-420.0,0.00028629,2]
[343290609,1732546242875,-151.0,0.00028717,7]
[343290610,1732546242884,-169.8196456,0.0002874,30]
[343290611,1732546242894,-212.7413024,0.0002874,30]
[343290612,1732546242903,-169.8330963,0.0002874,30]
[343290613,1732546242912,-212.7413024,0.0002874,30]
[343290614,1732546242922,-310.5783096,0.0002874,30]
[343290615,1732546242931,-451.7842529,0.0002874,30]
[343290616,1732546242942,-304.7429954,0.0002874,30]
[343290617,1732546242951,-212.7413024,0.0002874,30]
[343290618,1732546242961,-304.7429954,0.0002874,30]
[343290619,1732546242971,-212.7413024,0.0002874,30]
[343290620,1732546242981,-218.93300806,0.00028767,4]
[343290621,1732546242990,-319.35,0.00028768,2]
[343290622,1732546243000,-500.0,0.00028768,2]
[343290623,1732546243009,-558.09,0.00028768,2]
[343290624,1732546243019,-500.0,0.00028768,2]
[343290625,1732546243028,-500.0,0.00028768,2]
[343290626,1732546243038,-1132.81,0.00028769,2]
[343290627,1732546243051,-500.0,0.00028769,2]
[343290628,1732546243060,-528.84708674,0.00028769,2]
[343290629,1732546243069,-169.18,0.0002877,2]
[343290630,1732546243078,-500.0,0.0002877,2]
[343290631,1732546243088,-500.0,0.0002877,2]
[343290632,1732546243097,-220.0,0.00028997,2]
[343290633,1732546243106,-500.0,0.00029001,2]
[343290634,1732546243115,-287.7163651,0.00029014,30]
[343290635,1732546243125,-500.0,0.0002902,2]
[343290636,1732546243135,-500.0,0.00029042,2]
[343290637,1732546243144,-558.09,0.00029042,2]
[343290638,1732546243154,-500.0,0.00029042,2]
[343290640,1732546243164,-500.0,0.00029042,2]
[343290642,1732546243173,-1132.81,0.00029043,2]
[343290643,1732546243182,-500.0,0.00029043,2]
[343290644,1732546243192,-500.0,0.00029044,2]
[343290645,1732546243201,-500.0,0.00029044,2]
[343290646,1732546243210,-151.0,0.00029096,7]
[343290647,1732546243220,-1210.692953,0.000291,2]
[343290648,1732546243229,-4711.442,0.00029241,2]
[343290649,1732546243238,-650.195,0.00029241,2]
[343290650,1732546243248,-151.0,0.00029241,2]
[343290651,1732546243258,-153.0,0.00029285,2]
[343290652,1732546243267,-531.0,0.00029288,2]
[343290653,1732546243276,-2379.0,0.00029288,2]
[343290654,1732546243286,-1109.0,0.00029288,2]
[343290655,1732546243299,-186.0,0.000293,2]
[343290656,1732546243308,-500.0,0.00029316,2]
[343290657,1732546243318,-558.09,0.00029316,2]
[343290658,1732546243328,-500.0,0.00029316,2]
[343290659,1732546243337,-500.0,0.00029316,2]
[343290660,1732546243347,-1132.81,0.00029317,2]
[343290661,1732546243356,-500.0,0.00029317,2]
[343290662,1732546243366,-500.0,0.00029318,2]
[343290663,1732546243375,-500.0,0.00029318,2]
[343290664,1732546243385,-170.78253416,0.00029473,2]
[343290665,1732546243394,-3938.34646099,0.00029473,2]
[343290666,1732546243403,-151.0,0.00029474,15]
[343290667,1732546243412,-300.0,0.000295,2]
[343290668,1732546243554,-152.3714977,0.00029562,30]
[343290669,1732546243568,-152.3714977,0.00029562,30]
[343290670,1732546243578,-152.3714977,0.00029562,30]
[343290671,1732546243588,-152.3714977,0.00029562,30]
[343290672,1732546243598,-152.3714977,0.00029562,30]
[343290673,1732546243607,-152.3714977,0.00029562,30]
[343290674,1732546243617,-212.7413024,0.00029562,30]
[343290675,1732546243627,-212.7413024,0.00029562,30]
[343290676,1732546243637,-212.7413024,0.00029562,30]
[343290677,1732546243646,-153.0,0.00029562,30]
[343290678,1732546243655,-212.7413024,0.00029562,30]
[343290679,1732546243665,-153.0,0.00029562,30]
[343290680,1732546243674,-153.0,0.00029562,30]
[343290681,1732546243684,-306.0,0.00029562,30]
[343290682,1732546243694,-500.0,0.00029574,10]
[343290683,1732546243704,-500.0,0.00029574,10]
[343290684,1732546243714,-500.0,0.00029574,10]
[343290685,1732546243723,-500.0,0.00029574,10]
[343290686,1732546243732,-500.0,0.00029574,10]
[343290687,1732546243740,-500.0,0.00029574,10]
[343290688,1732546243750,-151.83351094,0.00029574,10]
[343290689,1732546243759,-500.0,0.0002959,2]
[343290690,1732546243770,-558.09,0.0002959,2]
[343290691,1732546243781,-500.0,0.0002959,2]
[343290692,1732546243791,-518.08955513,0.0002959,2]
[343290693,1732546243811,-1132.81,0.00029591,2]
[343290694,1732546243820,-500.0,0.00029591,2]
[343290695,1732546243830,-500.0,0.00029592,2]
[343290696,1732546243840,-500.0,0.00029592,2]
[343290697,1732546243850,-250000.0,0.00029604,2]
[343290698,1732546243860,-660.0,0.00029604,2]
[343290699,1732546243870,-32765.507581,0.0002961,2]
[343290700,1732546243879,-210.26549161,0.0002961,120]
[343290701,1732546243889,-504.40584665,0.00029673,5]
[343290702,1732546243899,-151.636923,0.00029718,7]
[343290703,1732546243908,-151.0,0.00029718,7]
[343290704,1732546243917,-151.0,0.00029718,7]
[343290705,1732546243926,-151.0,0.00029718,7]
[343290706,1732546243935,-3068082.7089359,0.00029751,10]
[343290707,1732546243991,-19340.0,0.00029751,10]
[343290708,1732546244915,-153.0,0.00028603,30]
[343290709,1732546244925,-212.7413024,0.0002874,30]
[343290710,1732546244934,-4202.92309718,0.00029751,10]
[343290712,1732546244947,-46549.22886963,0.00029751,10]
[343290725,1732546245702,-486.98561293,0.00029751,10]
[343290726,1732546245713,-98141.99998,0.00029751,10]
[343290727,1732546245725,-96342.0,0.00029751,10]
[343290728,1732546245739,-111873.94747965,0.00029751,10]
[343290729,1732546245771,-8502.4534221,0.00029751,10]
[343290730,1732546245786,-425.08921334,0.00029751,10]
[343290731,1732546245815,-8417.44814872,0.00029751,10]
[343290733,1732546245828,-5955.74764424,0.00029751,10]
[343290749,1732546247089,-2625.56430732,0.00029473,2]
[343290751,1732546247099,-816.54,0.00029741,10]
[343290753,1732546247109,-437535.66804364,0.00029751,10]
[343290756,1732546247120,-482.92,0.00029751,10]
[343290758,1732546247132,-1149.60911969,0.00029751,10]
[343290759,1732546247144,-10457.40000003,0.00029751,10]
[343290761,1732546247155,-48501.0,0.00029751,10]
[343291429,1732546282675,163.538845,0.00013973,2]
[343291432,1732546429998,799.76846034,0.00026,10]
[343291442,1732546546878,161.0,0.00022,2]
[343291551,1732546829449,6498.2,0.00026,30]
[343291554,1732546857757,10000.0,0.00026,2]
[343291557,1732546998019,163.538845,0.00013973,2]
[343291561,1732547193157,-235.7522136,0.00026028,2]
[343291662,1732547432306,-264.2477864,0.00026028,2]
[343291664,1732547432315,-500.0,0.00026028,2]
[343291666,1732547432325,-500.0,0.00026064,7]
[343291668,1732547432334,-25.2121336,0.00026302,2]
[343291671,1732547432346,-474.7878664,0.00026302,2]
[343291672,1732547432355,-500.0,0.00026302,2]
[343291674,1732547432364,-50.9121336,0.00026497,2]
[343291677,1732547432375,-129.8183214,0.00026497,2]
[343291679,1732547432392,-352.25774748,0.00026576,2]
[343291681,1732547432400,-500.0,0.00026576,2]
[343291683,1732547432410,-186.26433926,0.0002685,2]
[343291685,1732547432419,-381.68120081,0.00027708,7]
[343291687,1732547432429,-300.0,0.00027999,2]
[343291690,1732547432438,-391.910322,0.00028,2]
[343291693,1732547432447,-820.52,0.000286,2]
[343291695,1732547432456,-158.615,0.0002863,20]
[343291697,1732547432466,-529.326,0.00028977,2]
[343291699,1732547432475,-2379.0,0.00028977,2]
[343291701,1732547432485,-1105.0,0.00028977,2]
[343291703,1732547432495,-550.18,0.0002904,2]
[343291705,1732547432504,-500.0,0.0002904,2]
[343291707,1732547432513,-500.0,0.00029314,2]
[343291709,1732547432523,-500.0,0.00029399,2]
[343291711,1732547432532,-500.0,0.00029399,2]
[343291713,1732547432541,-500.0,0.00029399,2]
[343291715,1732547432551,-500.0,0.00029399,2]
[343291717,1732547432560,-383.05108223,0.00029399,2]